[Event "*** SCC Grand Prix: Titled Tuesday Blitz"]
[Site "Chess.com"]
[Date "2020.07.14"]
[Round "2"]
[White "mjray79"]
[Black "swayamsm"]
[Result "1/2-1/2"]
[WhiteElo "2344"]
[BlackElo "2613"]
[TimeControl "180+1"]
[EndTime "10:18:40 PDT"]
[Termination "Game drawn - insufficient material"]

1. d4 {[%clk 0:03:00.9]} 1... e6 {[%clk 0:02:59.8]} 2. c4 {[%clk 0:03:01.4]}
2... f5 {[%clk 0:03:00.1]} 3. Nc3 {[%clk 0:03:00]} 3... Nf6 {[%clk 0:03:00.4]}
4. g3 {[%clk 0:03:00.3]} 4... Bb4 {[%clk 0:02:59.7]} 5. Bg2 {[%clk 0:02:58]}
5... O-O {[%clk 0:03:00]} 6. Qc2 {[%clk 0:02:57.6]} 6... Nc6 {[%clk 0:02:51.9]}
7. Nf3 {[%clk 0:02:57.2]} 7... d6 {[%clk 0:02:51.7]} 8. Bf4 {[%clk 0:02:48]}
8... Qe8 {[%clk 0:02:39.2]} 9. O-O {[%clk 0:02:26.8]} 9... e5 {[%clk 0:02:37.1]}
10. dxe5 {[%clk 0:02:27.3]} 10... dxe5 {[%clk 0:02:36]} 11. Bg5 {[%clk
0:02:27.8]} 11... Bxc3 {[%clk 0:02:33.5]} 12. Qxc3 {[%clk 0:02:25.7]} 12... e4
{[%clk 0:02:28.2]} 13. Nd4 {[%clk 0:02:24]} 13... Nxd4 {[%clk 0:02:22.6]} 14.
Qxd4 {[%clk 0:02:24.9]} 14... Be6 {[%clk 0:02:21.8]} 15. Rac1 {[%clk 0:02:19.5]}
15... a6 {[%clk 0:02:10.4]} 16. Rfd1 {[%clk 0:02:18.4]} 16... Rd8 {[%clk
0:02:07.4]} 17. Qc5 {[%clk 0:02:13.5]} 17... Qf7 {[%clk 0:01:53.4]} 18. Bxf6
{[%clk 0:02:09.2]} 18... gxf6 {[%clk 0:01:38.5]} 19. b3 {[%clk 0:02:02.2]} 19...
Rd7 {[%clk 0:01:29.1]} 20. Rxd7 {[%clk 0:01:48.9]} 20... Qxd7 {[%clk 0:01:30]}
21. Qe3 {[%clk 0:01:48.5]} 21... Rd8 {[%clk 0:01:22.4]} 22. Qc3 {[%clk
0:01:43.4]} 22... Qd4 {[%clk 0:01:20.8]} 23. Qxd4 {[%clk 0:01:36]} 23... Rxd4
{[%clk 0:01:21.7]} 24. Rc2 {[%clk 0:01:35.1]} 24... f4 {[%clk 0:01:15]} 25. h3
{[%clk 0:01:11.6]} 25... fxg3 {[%clk 0:00:56]} 26. fxg3 {[%clk 0:01:12.5]} 26...
c5 {[%clk 0:00:50.2]} 27. Kf2 {[%clk 0:01:10]} 27... f5 {[%clk 0:00:46.3]} 28.
Ke3 {[%clk 0:01:09.4]} 28... Kg7 {[%clk 0:00:45.4]} 29. Rc1 {[%clk 0:01:05.8]}
29... Kf6 {[%clk 0:00:44.7]} 30. Rf1 {[%clk 0:01:04.3]} 30... Ke5 {[%clk
0:00:44.2]} 31. Rf4 {[%clk 0:00:58.6]} 31... b5 {[%clk 0:00:39.2]} 32. cxb5
{[%clk 0:00:50.8]} 32... axb5 {[%clk 0:00:40.1]} 33. g4 {[%clk 0:00:48.5]} 33...
fxg4 {[%clk 0:00:38.5]} 34. hxg4 {[%clk 0:00:49.4]} 34... c4 {[%clk 0:00:12.3]}
35. bxc4 {[%clk 0:00:42.1]} 35... bxc4 {[%clk 0:00:11.8]} 36. Rxe4+ {[%clk
0:00:41.9]} 36... Rxe4+ {[%clk 0:00:11.6]} 37. Bxe4 {[%clk 0:00:42.8]} 37... h6
{[%clk 0:00:10.7]} 38. a4 {[%clk 0:00:34]} 38... c3 {[%clk 0:00:09.6]} 39. Bc2
{[%clk 0:00:27]} 39... Bxg4 {[%clk 0:00:09.2]} 40. a5 {[%clk 0:00:26.1]} 40...
Kd6 {[%clk 0:00:03.9]} 41. Kd4 {[%clk 0:00:24.2]} 41... Bxe2 {[%clk 0:00:03.2]}
42. Kxc3 {[%clk 0:00:23.1]} 42... Kc5 {[%clk 0:00:03.4]} 43. Kd2 {[%clk
0:00:22.1]} 43... Ba6 {[%clk 0:00:03]} 44. Ke3 {[%clk 0:00:21.8]} 44... Kb4
{[%clk 0:00:03.5]} 45. Kf4 {[%clk 0:00:21.5]} 45... Kxa5 {[%clk 0:00:04.4]} 46.
Kg4 {[%clk 0:00:21.2]} 46... Be2+ {[%clk 0:00:04.7]} 47. Kh4 {[%clk 0:00:20.5]}
47... Kb4 {[%clk 0:00:05.6]} 48. Bg6 {[%clk 0:00:20.2]} 48... Kc5 {[%clk
0:00:06.1]} 49. Bh5 {[%clk 0:00:20.3]} 49... Bb5 {[%clk 0:00:05.9]} 50. Bg4
{[%clk 0:00:20.2]} 50... Be8 {[%clk 0:00:06]} 51. Bh5 {[%clk 0:00:19.8]} 51...
Bd7 {[%clk 0:00:05.9]} 52. Bg4 {[%clk 0:00:19.9]} 52... Be8 {[%clk 0:00:04.7]}
53. Bh5 {[%clk 0:00:20.1]} 53... Ba4 {[%clk 0:00:05]} 54. Bg4 {[%clk 0:00:20.1]}
54... Kd5 {[%clk 0:00:04.8]} 55. Kh5 {[%clk 0:00:19.7]} 55... Ke5 {[%clk
0:00:05.7]} 56. Kxh6 {[%clk 0:00:19.7]} 1/2-1/2

[Event "*** SCC Grand Prix: Titled Tuesday Blitz"]
[Site "Chess.com"]
[Date "2020.07.14"]
[Round "2"]
[White "GaboSalazar2001"]
[Black "SGchess01"]
[Result "0-1"]
[WhiteElo "2311"]
[BlackElo "2610"]
[TimeControl "180+1"]
[EndTime "10:18:43 PDT"]
[Termination "SGchess01 won by resignation"]

1. e4 {[%clk 0:03:00.9]} 1... e5 {[%clk 0:02:59.1]} 2. Bc4 {[%clk 0:02:57.7]}
2... Nf6 {[%clk 0:02:57.4]} 3. d3 {[%clk 0:02:58.1]} 3... Nc6 {[%clk 0:02:56.2]}
4. Nc3 {[%clk 0:02:58.5]} 4... Na5 {[%clk 0:02:54.2]} 5. Nf3 {[%clk 0:02:54.5]}
5... Nxc4 {[%clk 0:02:52.5]} 6. dxc4 {[%clk 0:02:55.4]} 6... d6 {[%clk
0:02:53.1]} 7. O-O {[%clk 0:02:54.3]} 7... Be7 {[%clk 0:02:52.8]} 8. Qd3 {[%clk
0:02:46.8]} 8... O-O {[%clk 0:02:52.5]} 9. h3 {[%clk 0:02:36]} 9... c6 {[%clk
0:02:52.2]} 10. Be3 {[%clk 0:02:30]} 10... h6 {[%clk 0:02:48.4]} 11. Rad1 {[%clk
0:02:29.7]} 11... Be6 {[%clk 0:02:48.4]} 12. b3 {[%clk 0:02:26]} 12... Qc7
{[%clk 0:02:48.2]} 13. Qe2 {[%clk 0:02:21.6]} 13... Rad8 {[%clk 0:02:46]} 14.
Rd2 {[%clk 0:02:05.7]} 14... d5 {[%clk 0:02:33]} 15. exd5 {[%clk 0:02:06.1]}
15... cxd5 {[%clk 0:02:33.3]} 16. Nxd5 {[%clk 0:02:05.3]} 16... Nxd5 {[%clk
0:02:14.7]} 17. cxd5 {[%clk 0:02:06.2]} 17... Rxd5 {[%clk 0:02:13.5]} 18. Rxd5
{[%clk 0:02:01.3]} 18... Bxd5 {[%clk 0:02:13.7]} 19. c4 {[%clk 0:02:01.7]} 19...
Bc6 {[%clk 0:02:11.8]} 20. Rd1 {[%clk 0:01:53.2]} 20... b6 {[%clk 0:02:05.1]}
21. Bd2 {[%clk 0:01:34.5]} 21... Bd6 {[%clk 0:01:51.7]} 22. Bc3 {[%clk
0:01:34.1]} 22... Re8 {[%clk 0:01:51.7]} 23. Qd2 {[%clk 0:01:24.3]} 23... Bf8
{[%clk 0:01:49.6]} 24. Qe2 {[%clk 0:01:16.6]} 24... Qb7 {[%clk 0:01:47.4]} 25.
b4 {[%clk 0:00:59]} 25... Bxf3 {[%clk 0:01:40.8]} 26. Qxf3 {[%clk 0:00:59.9]}
26... Qxf3 {[%clk 0:01:40.6]} 27. gxf3 {[%clk 0:01:00.8]} 27... Rc8 {[%clk
0:01:41]} 28. Bxe5 {[%clk 0:00:48.3]} 28... Bxb4 {[%clk 0:01:35.6]} 29. Rd7
{[%clk 0:00:40.1]} 29... a5 {[%clk 0:01:29.6]} 30. Rc7 {[%clk 0:00:37.2]} 30...
Rd8 {[%clk 0:01:20.2]} 31. Bf4 {[%clk 0:00:26.7]} 31... Rd1+ {[%clk 0:01:15.1]}
32. Kg2 {[%clk 0:00:26.6]} 32... Bc5 {[%clk 0:01:15.5]} 33. Be3 {[%clk
0:00:23.4]} 33... Bxe3 {[%clk 0:01:14.8]} 34. fxe3 {[%clk 0:00:24.3]} 34... Rd2+
{[%clk 0:01:15.5]} 35. Kg3 {[%clk 0:00:24.6]} 35... Rxa2 {[%clk 0:01:15.9]} 36.
Rb7 {[%clk 0:00:25.1]} 36... Rc2 {[%clk 0:01:13.6]} 37. Rxb6 {[%clk 0:00:23.9]}
37... Rxc4 {[%clk 0:01:14]} 38. Ra6 {[%clk 0:00:24.6]} 38... a4 {[%clk
0:01:14.2]} 39. e4 {[%clk 0:00:24.7]} 39... g6 {[%clk 0:01:14.1]} 40. Kf4 {[%clk
0:00:24.9]} 40... Kg7 {[%clk 0:01:14.6]} 41. Ke5 {[%clk 0:00:21.9]} 41... Rc3
{[%clk 0:01:14.3]} 42. Kf4 {[%clk 0:00:21.8]} 42... a3 {[%clk 0:01:09.6]} 43. e5
{[%clk 0:00:21.9]} 43... h5 {[%clk 0:01:05.5]} 44. h4 {[%clk 0:00:19.5]} 44...
Rb3 {[%clk 0:01:03.1]} 45. Ke4 {[%clk 0:00:19.6]} 45... Rb4+ {[%clk 0:01:02.3]}
46. Kd5 {[%clk 0:00:19.7]} 46... Rxh4 {[%clk 0:01:02]} 47. Rxa3 {[%clk
0:00:20.2]} 47... Rf4 {[%clk 0:01:02.6]} 48. e6 {[%clk 0:00:15]} 48... Rf5+
{[%clk 0:01:02.7]} 49. Ke4 {[%clk 0:00:14.5]} 49... fxe6 {[%clk 0:01:02.4]} 50.
Ra7+ {[%clk 0:00:15.4]} 50... Kf6 {[%clk 0:01:02.7]} 51. Ra2 {[%clk 0:00:15.8]}
51... h4 {[%clk 0:01:01.4]} 52. Rh2 {[%clk 0:00:16.5]} 52... Rh5 {[%clk
0:01:01.6]} 53. Rh3 {[%clk 0:00:16.6]} 53... e5 {[%clk 0:01:01.1]} 54. Rh2
{[%clk 0:00:15.8]} 54... h3 {[%clk 0:00:59.9]} 55. Ke3 {[%clk 0:00:15.7]} 55...
Rh4 {[%clk 0:01:00.1]} 56. Kf2 {[%clk 0:00:15.8]} 56... Kf5 {[%clk 0:01:00.5]}
57. Kg3 {[%clk 0:00:16.2]} 57... g5 {[%clk 0:00:58.4]} 58. Kf2 {[%clk
0:00:13.9]} 58... Kf4 {[%clk 0:00:58.3]} 59. Rh1 {[%clk 0:00:12.3]} 59... h2
{[%clk 0:00:57.6]} 60. Kg2 {[%clk 0:00:12.9]} 60... g4 {[%clk 0:00:54.9]} 61.
fxg4 {[%clk 0:00:12.8]} 61... Kxg4 {[%clk 0:00:55.8]} 62. Kf2 {[%clk 0:00:12.7]}
62... Kf4 {[%clk 0:00:54.1]} 63. Kg2 {[%clk 0:00:12.3]} 63... e4 {[%clk
0:00:54.1]} 64. Rf1+ {[%clk 0:00:12.5]} 64... Ke5 {[%clk 0:00:54.1]} 65. Kh1
{[%clk 0:00:11.7]} 65... e3 {[%clk 0:00:54.6]} 66. Re1 {[%clk 0:00:10]} 66...
Ke4 {[%clk 0:00:54.5]} 67. Re2 {[%clk 0:00:09.4]} 67... Kd3 {[%clk 0:00:54.2]}
68. Rg2 {[%clk 0:00:08.9]} 68... e2 {[%clk 0:00:53.9]} 69. Rg3+ {[%clk 0:00:06]}
69... Kd2 {[%clk 0:00:54.2]} 70. Rg4 {[%clk 0:00:03.9]} 70... e1=Q+ {[%clk
0:00:52.9]} 0-1

[Event "*** SCC Grand Prix: Titled Tuesday Blitz"]
[Site "Chess.com"]
[Date "2020.07.14"]
[Round "2"]
[White "djano"]
[Black "novocane"]
[Result "1-0"]
[WhiteElo "2451"]
[BlackElo "2249"]
[TimeControl "180+1"]
[EndTime "10:18:44 PDT"]
[Termination "djano won by checkmate"]

1. c4 {[%clk 0:03:00.9]} 1... e5 {[%clk 0:02:59.1]} 2. Nc3 {[%clk 0:02:59.8]}
2... Bb4 {[%clk 0:02:59]} 3. h4 {[%clk 0:02:59.9]} 3... Bxc3 {[%clk 0:02:49.7]}
4. bxc3 {[%clk 0:03:00.8]} 4... Nc6 {[%clk 0:02:47.7]} 5. g3 {[%clk 0:02:57.7]}
5... d6 {[%clk 0:02:46.2]} 6. Bg2 {[%clk 0:02:57.5]} 6... Be6 {[%clk 0:02:45.9]}
7. Rb1 {[%clk 0:02:49.9]} 7... Qc8 {[%clk 0:02:22.8]} 8. Qa4 {[%clk 0:02:33.8]}
8... Ne7 {[%clk 0:02:19.9]} 9. Nf3 {[%clk 0:02:32.6]} 9... O-O {[%clk
0:02:10.4]} 10. Ng5 {[%clk 0:02:30]} 10... Bd7 {[%clk 0:02:02.9]} 11. Qc2 {[%clk
0:02:28]} 11... f5 {[%clk 0:02:02]} 12. d3 {[%clk 0:02:22]} 12... h6 {[%clk
0:01:59.3]} 13. Nf3 {[%clk 0:02:20.2]} 13... e4 {[%clk 0:01:55.3]} 14. Nd4
{[%clk 0:02:08.8]} 14... Ne5 {[%clk 0:01:16.5]} 15. h5 {[%clk 0:01:49.4]} 15...
c5 {[%clk 0:01:09.3]} 16. Nb5 {[%clk 0:01:41.6]} 16... exd3 {[%clk 0:00:38.2]}
17. exd3 {[%clk 0:01:38.8]} 17... f4 {[%clk 0:00:25.7]} 18. Bxf4 {[%clk
0:01:27.4]} 18... Rxf4 {[%clk 0:00:21.6]} 19. gxf4 {[%clk 0:01:28.3]} 19... Ng4
{[%clk 0:00:19.3]} 20. Nxd6 {[%clk 0:01:19.1]} 20... Qc7 {[%clk 0:00:18.5]} 21.
Ne4 {[%clk 0:01:04.3]} 21... Qxf4 {[%clk 0:00:17.5]} 22. Qd2 {[%clk 0:01:02.7]}
22... Qe5 {[%clk 0:00:14.2]} 23. d4 {[%clk 0:00:54.3]} 23... Qf5 {[%clk
0:00:09.5]} 24. f3 {[%clk 0:00:39.6]} 24... Nf6 {[%clk 0:00:08.6]} 25. Rxb7
{[%clk 0:00:32.1]} 25... Re8 {[%clk 0:00:07.9]} 26. Kd1 {[%clk 0:00:16.5]} 26...
Bc6 {[%clk 0:00:06.1]} 27. Rb2 {[%clk 0:00:12.9]} 27... Nxe4 {[%clk 0:00:06.1]}
28. fxe4 {[%clk 0:00:13.1]} 28... Bxe4 {[%clk 0:00:06.4]} 29. Bxe4 {[%clk
0:00:13.2]} 29... Qxe4 {[%clk 0:00:06.7]} 30. Re1 {[%clk 0:00:13.8]} 30... Qg4+
{[%clk 0:00:06.9]} 31. Qe2 {[%clk 0:00:14.2]} 31... Qg5 {[%clk 0:00:06]} 32. Rb7
{[%clk 0:00:12.7]} 32... cxd4 {[%clk 0:00:06.2]} 33. Rxe7 {[%clk 0:00:12.1]}
33... Rxe7 {[%clk 0:00:06.2]} 34. Qxe7 {[%clk 0:00:13]} 34... Qxh5+ {[%clk
0:00:05.8]} 35. Qe2 {[%clk 0:00:10.9]} 35... Qa5 {[%clk 0:00:05.9]} 36. Qe8+
{[%clk 0:00:10.7]} 36... Kh7 {[%clk 0:00:06.4]} 37. Qe4+ {[%clk 0:00:10.6]}
37... Kh8 {[%clk 0:00:06.8]} 38. Qa8+ {[%clk 0:00:10.5]} 38... Kh7 {[%clk
0:00:06.8]} 39. Qe4+ {[%clk 0:00:10.9]} 39... Kh8 {[%clk 0:00:07.2]} 40. Qxd4
{[%clk 0:00:11.8]} 40... Qxa2 {[%clk 0:00:06.2]} 41. Qd8+ {[%clk 0:00:11.9]}
41... Kh7 {[%clk 0:00:06.5]} 42. Qd2 {[%clk 0:00:12.8]} 42... Qb1+ {[%clk
0:00:05.5]} 43. Ke2 {[%clk 0:00:12.4]} 43... Qe4+ {[%clk 0:00:05.4]} 44. Qe3
{[%clk 0:00:13.3]} 44... Qg2+ {[%clk 0:00:05.9]} 45. Kd3 {[%clk 0:00:13.3]}
45... Qb2 {[%clk 0:00:02.5]} 46. Qe4+ {[%clk 0:00:13.3]} 46... Kh8 {[%clk
0:00:03.3]} 47. Qd4 {[%clk 0:00:11.5]} 47... Qa2 {[%clk 0:00:03.1]} 48. Re8+
{[%clk 0:00:11.3]} 48... Kh7 {[%clk 0:00:02.1]} 49. Qe4+ {[%clk 0:00:11.9]}
49... g6 {[%clk 0:00:01.6]} 50. Qe7# {[%clk 0:00:12.8]} 1-0

[Event "*** SCC Grand Prix: Titled Tuesday Blitz"]
[Site "Chess.com"]
[Date "2020.07.14"]
[Round "2"]
[White "Lion-Al-Messi"]
[Black "garfield_pg"]
[Result "1-0"]
[WhiteElo "2436"]
[BlackElo "2214"]
[TimeControl "180+1"]
[EndTime "10:18:45 PDT"]
[Termination "Lion-Al-Messi won by checkmate"]

1. e4 {[%clk 0:00:18.3]} 1... c5 {[%clk 0:02:58.8]} 2. d3 {[%clk 0:00:19.2]}
2... d5 {[%clk 0:02:58.6]} 3. Nf3 {[%clk 0:00:19.5]} 3... dxe4 {[%clk
0:02:58.7]} 4. dxe4 {[%clk 0:00:20.4]} 4... Qxd1+ {[%clk 0:02:59.3]} 5. Kxd1
{[%clk 0:00:20.4]} 5... Bg4 {[%clk 0:02:58.6]} 6. Bb5+ {[%clk 0:00:20.6]} 6...
Nd7 {[%clk 0:02:56.7]} 7. h3 {[%clk 0:00:20.7]} 7... Bxf3+ {[%clk 0:02:56.6]} 8.
gxf3 {[%clk 0:00:21.2]} 8... O-O-O {[%clk 0:02:57.5]} 9. Ke2 {[%clk 0:00:21.4]}
9... a6 {[%clk 0:02:49.4]} 10. Bd3 {[%clk 0:00:20.9]} 10... Ne5 {[%clk 0:02:46]}
11. Bf4 {[%clk 0:00:20.9]} 11... Ng6 {[%clk 0:02:38.4]} 12. Bg3 {[%clk
0:00:20.6]} 12... e5 {[%clk 0:02:34.5]} 13. Nc3 {[%clk 0:00:20.1]} 13... b5
{[%clk 0:02:30.7]} 14. b3 {[%clk 0:00:17.9]} 14... Nf6 {[%clk 0:02:17.5]} 15. a4
{[%clk 0:00:17.4]} 15... c4 {[%clk 0:00:58.9]} 16. bxc4 {[%clk 0:00:17]} 16...
Bb4 {[%clk 0:00:59.1]} 17. Nd5 {[%clk 0:00:16.6]} 17... Nxd5 {[%clk 0:00:50]}
18. cxd5 {[%clk 0:00:17.5]} 18... Bc3 {[%clk 0:00:49]} 19. Rab1 {[%clk
0:00:16.4]} 19... b4 {[%clk 0:00:49.2]} 20. Bxa6+ {[%clk 0:00:15.8]} 20... Kc7
{[%clk 0:00:49.5]} 21. Bc4 {[%clk 0:00:14.4]} 21... f6 {[%clk 0:00:49]} 22. Bb3
{[%clk 0:00:14.1]} 22... Kd6 {[%clk 0:00:47.9]} 23. Rbd1 {[%clk 0:00:13.4]}
23... h5 {[%clk 0:00:45.4]} 24. h4 {[%clk 0:00:13.3]} 24... Nf4+ {[%clk
0:00:44]} 25. Bxf4 {[%clk 0:00:13.2]} 25... exf4 {[%clk 0:00:44.9]} 26. Rhg1
{[%clk 0:00:13.7]} 26... Rd7 {[%clk 0:00:45.1]} 27. Rg6 {[%clk 0:00:12.8]} 27...
Rc8 {[%clk 0:00:42.5]} 28. Rdg1 {[%clk 0:00:12.3]} 28... Rcc7 {[%clk 0:00:42.9]}
29. a5 {[%clk 0:00:12]} 29... Bd4 {[%clk 0:00:42.2]} 30. a6 {[%clk 0:00:11.5]}
30... Ke5 {[%clk 0:00:38.5]} 31. Ba4 {[%clk 0:00:10.9]} 31... Re7 {[%clk
0:00:37.5]} 32. Bc6 {[%clk 0:00:11.1]} 32... Kd6 {[%clk 0:00:37.4]} 33. Kd3
{[%clk 0:00:10.3]} 33... Bc5 {[%clk 0:00:36.8]} 34. Ra1 {[%clk 0:00:10.2]} 34...
Ra7 {[%clk 0:00:37]} 35. Ra4 {[%clk 0:00:10]} 35... Bxf2 {[%clk 0:00:36.3]} 36.
Ke2 {[%clk 0:00:10.1]} 36... Bxh4 {[%clk 0:00:33.1]} 37. Rxb4 {[%clk 0:00:10.1]}
37... Bg5 {[%clk 0:00:26.6]} 38. Ra4 {[%clk 0:00:09.4]} 38... h4 {[%clk
0:00:26.6]} 39. Kf2 {[%clk 0:00:08.6]} 39... Kc5 {[%clk 0:00:25.8]} 40. Kg2
{[%clk 0:00:08.5]} 40... Kd6 {[%clk 0:00:22.5]} 41. Ra5 {[%clk 0:00:08.1]} 41...
Ke5 {[%clk 0:00:22.3]} 42. c4 {[%clk 0:00:08]} 42... Kd4 {[%clk 0:00:22.5]} 43.
c5 {[%clk 0:00:07.7]} 43... Ke3 {[%clk 0:00:18.6]} 44. d6 {[%clk 0:00:07.5]}
44... Rf7 {[%clk 0:00:18.5]} 45. d7 {[%clk 0:00:07.5]} 45... Rfxd7 {[%clk
0:00:14]} 46. Bxd7 {[%clk 0:00:08.4]} 46... Rxd7 {[%clk 0:00:14.6]} 47. a7
{[%clk 0:00:09]} 47... Rd2+ {[%clk 0:00:13.4]} 48. Kh3 {[%clk 0:00:09.2]} 48...
Kxf3 {[%clk 0:00:10.4]} 49. a8=Q {[%clk 0:00:08.2]} 49... Rd1 {[%clk 0:00:10.8]}
50. e5+ {[%clk 0:00:08.1]} 50... Kf2 {[%clk 0:00:08]} 51. Ra2+ {[%clk
0:00:07.9]} 51... Kf1 {[%clk 0:00:07.3]} 52. Qh1# {[%clk 0:00:06.8]} 1-0

[Event "*** SCC Grand Prix: Titled Tuesday Blitz"]
[Site "Chess.com"]
[Date "2020.07.14"]
[Round "2"]
[White "The_Machine04"]
[Black "13MiRacLe"]
[Result "0-1"]
[WhiteElo "2299"]
[BlackElo "2626"]
[TimeControl "180+1"]
[EndTime "10:18:46 PDT"]
[Termination "13MiRacLe won on time"]

1. d4 {[%clk 0:03:00.9]} 1... Nf6 {[%clk 0:02:59.2]} 2. Bg5 {[%clk 0:02:57.6]}
2... c5 {[%clk 0:02:58.7]} 3. e3 {[%clk 0:02:50]} 3... Ne4 {[%clk 0:02:53.9]} 4.
Bf4 {[%clk 0:02:49.3]} 4... Qb6 {[%clk 0:02:43.9]} 5. Nc3 {[%clk 0:02:26.6]}
5... Nxc3 {[%clk 0:02:39.1]} 6. bxc3 {[%clk 0:02:23.5]} 6... d5 {[%clk
0:02:37.2]} 7. Rb1 {[%clk 0:02:08.8]} 7... Qa5 {[%clk 0:02:31.9]} 8. Qd2 {[%clk
0:01:51.2]} 8... cxd4 {[%clk 0:02:18.5]} 9. cxd4 {[%clk 0:01:49.2]} 9... Qxd2+
{[%clk 0:02:17.3]} 10. Kxd2 {[%clk 0:01:50.1]} 10... Nc6 {[%clk 0:02:17.3]} 11.
Nf3 {[%clk 0:01:48.5]} 11... e6 {[%clk 0:02:14.9]} 12. Ne5 {[%clk 0:01:41.5]}
12... Nxe5 {[%clk 0:02:05]} 13. Bxe5 {[%clk 0:01:38.4]} 13... f6 {[%clk
0:02:04.9]} 14. Bg3 {[%clk 0:01:37.3]} 14... Be7 {[%clk 0:01:48.2]} 15. Bb5+
{[%clk 0:01:30.4]} 15... Kf7 {[%clk 0:01:47.7]} 16. Rhc1 {[%clk 0:01:22.9]}
16... Ba3 {[%clk 0:01:39.8]} 17. Rd1 {[%clk 0:01:13.2]} 17... a6 {[%clk
0:01:39.8]} 18. Bd3 {[%clk 0:01:12]} 18... b5 {[%clk 0:01:39.7]} 19. Rb3 {[%clk
0:01:04.5]} 19... Be7 {[%clk 0:01:39.3]} 20. Ra1 {[%clk 0:01:00.2]} 20... Bd7
{[%clk 0:01:36.2]} 21. a4 {[%clk 0:00:42.6]} 21... bxa4 {[%clk 0:01:26.3]} 22.
Rb7 {[%clk 0:00:42.1]} 22... Rhd8 {[%clk 0:01:26]} 23. Bc7 {[%clk 0:00:27.9]}
23... Rdc8 {[%clk 0:01:19.6]} 24. Ba5 {[%clk 0:00:17.7]} 24... Bc6 {[%clk
0:01:14.2]} 25. Rb2 {[%clk 0:00:08.4]} 25... Rcb8 {[%clk 0:01:08.9]} 26. Rab1
{[%clk 0:00:04.9]} 26... Rxb2 {[%clk 0:01:02.2]} 27. Rxb2 {[%clk 0:00:05.8]}
27... a3 {[%clk 0:01:01.7]} 28. Ra2 {[%clk 0:00:05.8]} 28... Bb5 {[%clk
0:01:00]} 29. Bc3 {[%clk 0:00:03.3]} 29... Rc8 {[%clk 0:00:52.1]} 30. Ba5 {[%clk
0:00:01.4]} 30... Ke8 {[%clk 0:00:47]} 31. Ke2 {[%clk 0:00:01.6]} 31... Kd7
{[%clk 0:00:45.3]} 32. Bd2 {[%clk 0:00:01.7]} 32... e5 {[%clk 0:00:38.3]} 33.
Bc1 {[%clk 0:00:02]} 33... e4 {[%clk 0:00:34.9]} 34. Bxb5+ {[%clk 0:00:02.2]}
34... axb5 {[%clk 0:00:35.5]} 35. Bxa3 {[%clk 0:00:02.5]} 35... Ra8 {[%clk
0:00:34.8]} 36. Bxe7 {[%clk 0:00:01.1]} 36... Rxa2 {[%clk 0:00:34.4]} 37. Bf8
{[%clk 0:00:01.4]} 37... Rxc2+ {[%clk 0:00:33.3]} 38. Ke1 {[%clk 0:00:01.2]}
38... b4 {[%clk 0:00:32]} 39. Bxb4 {[%clk 0:00:01]} 39... Kc6 {[%clk 0:00:27.9]}
40. Bf8 {[%clk 0:00:01.6]} 40... g6 {[%clk 0:00:28.1]} 41. g3 {[%clk 0:00:02.3]}
41... h5 {[%clk 0:00:25.7]} 42. Bg7 {[%clk 0:00:02.9]} 42... f5 {[%clk
0:00:25.9]} 43. h4 {[%clk 0:00:03.5]} 43... Kb5 {[%clk 0:00:26]} 44. Be5 {[%clk
0:00:03.7]} 44... Kc4 {[%clk 0:00:26.3]} 45. Kf1 {[%clk 0:00:03.3]} 45... Kd3
{[%clk 0:00:26.6]} 46. Kg2 {[%clk 0:00:04.2]} 46... Ke2 {[%clk 0:00:26.6]} 47.
g4 {[%clk 0:00:04.5]} 47... hxg4 {[%clk 0:00:25]} 48. Bg3 {[%clk 0:00:04.5]}
48... Kd3 {[%clk 0:00:22.1]} 49. Kg1 {[%clk 0:00:04.5]} 49... Rc8 {[%clk
0:00:19.8]} 50. Kg2 {[%clk 0:00:04.7]} 50... Rg8 {[%clk 0:00:19.5]} 51. Bf4
{[%clk 0:00:04.4]} 51... Rh8 {[%clk 0:00:18.4]} 52. Bg5 {[%clk 0:00:04.2]} 52...
Ke2 {[%clk 0:00:18.9]} 53. Kg3 {[%clk 0:00:03.5]} 53... Kf1 {[%clk 0:00:19.3]}
54. Bf4 {[%clk 0:00:03.2]} 54... Ra8 {[%clk 0:00:18.1]} 55. Kh2 {[%clk
0:00:01.4]} 55... Kxf2 {[%clk 0:00:17.4]} 56. Bg3+ {[%clk 0:00:02.3]} 56... Kxe3
{[%clk 0:00:17.7]} 57. Bf4+ {[%clk 0:00:03.2]} 57... Kxf4 {[%clk 0:00:17.8]} 0-1